[Event "ONJK DE"]
[Site "Enschede, Netherlands"]
[Date "2022.08.10"]
[Round "5.6"]
[White "Leenen, Boyd (E)"]
[Black "Katpatal, Akshaj (E)"]
[Result "0-1"]
[TimeControl "40min + 30sec/move"]
[WhiteElo "1417"]
[BlackElo "1874"]

1. e4 {[%clk 00:40:58]} {[%emt 00:00:01]} c5 {[%clk 00:40:54]} {[%emt
00:00:07]} 2. Nf3 {[%clk 00:41:21]} {[%emt 00:00:06]} d6 {[%clk 00:41:19]}
{[%emt 00:00:05]} 3. d4 {[%clk 00:41:44]} {[%emt 00:00:07]} cxd4 {[%clk
00:41:46]} {[%emt 00:00:04]} 4. Bb5+ {[%clk 00:42:09]} {[%emt 00:00:05]} Nc6
{[%clk 00:42:02]} {[%emt 00:00:14]} 5. Nxd4 {[%clk 00:42:32]} {[%emt 00:00:07]}
Bd7 {[%clk 00:42:25]} {[%emt 00:00:06]} 6. Bxc6 {[%clk 00:42:55]} {[%emt
00:00:08]} bxc6 {[%clk 00:42:51]} {[%emt 00:00:04]} 7. Nc3 {[%clk 00:43:19]}
{[%emt 00:00:06]} Nf6 {[%clk 00:43:14]} {[%emt 00:00:07]} 8. Be3 {[%clk
00:43:42]} {[%emt 00:00:06]} e6 {[%clk 00:43:27]} {[%emt 00:00:17]} 9. Qd2
{[%clk 00:43:57]} {[%emt 00:00:15]} Be7 {[%clk 00:43:47]} {[%emt 00:00:10]} 10.
f3 {[%clk 00:44:14]} {[%emt 00:00:12]} c5 {[%clk 00:43:44]} {[%emt 00:00:34]}
11. Nde2 {[%clk 00:44:16]} {[%emt 00:00:28]} Bc6 {[%clk 00:44:03]} {[%emt
00:00:11]} 12. O-O {[%clk 00:44:21]} {[%emt 00:00:24]} O-O {[%clk 00:44:15]}
{[%emt 00:00:19]} 13. Bf2 {[%clk 00:44:39]} {[%emt 00:00:11]} d5 {[%clk
00:36:08]} {[%emt 00:08:38]} 14. exd5 {[%clk 00:44:44]} {[%emt 00:00:25]} exd5
{[%clk 00:36:18]} {[%emt 00:00:20]} 15. Ng3 {[%clk 00:44:50]} {[%emt 00:00:24]}
d4 {[%clk 00:36:36]} {[%emt 00:00:13]} 16. Nce4 {[%clk 00:45:09]} {[%emt
00:00:11]} Nxe4 {[%clk 00:36:58]} {[%emt 00:00:08]} 17. Nxe4 {[%clk 00:45:34]}
{[%emt 00:00:05]} f5 {[%clk 00:37:04]} {[%emt 00:00:23]} 18. Ng3 {[%clk
00:45:49]} {[%emt 00:00:15]} Bg5 {[%clk 00:37:04]} {[%emt 00:00:29]} 19. Qd3
{[%clk 00:44:58]} {[%emt 00:01:23]} Qd7 {[%clk 00:36:36]} {[%emt 00:00:58]} 20.
a4 {[%clk 00:44:45]} {[%emt 00:00:43]} Rae8 {[%clk 00:36:31]} {[%emt 00:00:35]}
21. Rfe1 {[%clk 00:44:44]} {[%emt 00:00:32]} Qd5 {[%clk 00:35:43]} {[%emt
00:01:16]} 22. b3 {[%clk 00:44:36]} {[%emt 00:00:40]} g6 {[%clk 00:34:12]}
{[%emt 00:02:01]} 23. Rad1 {[%clk 00:44:37]} {[%emt 00:00:29]} Bb7 {[%clk
00:33:51]} {[%emt 00:00:50]} 24. c3 {[%clk 00:43:54]} {[%emt 00:01:13]} Rxe1+
{[%clk 00:34:13]} {[%emt 00:00:09]} 25. Bxe1 {[%clk 00:44:00]} {[%emt
00:00:24]} Qxb3 {[%clk 00:34:25]} {[%emt 00:00:18]} 26. cxd4 {[%clk 00:43:50]}
{[%emt 00:00:40]} Qxd3 {[%clk 00:34:45]} {[%emt 00:00:10]} 27. Rxd3 {[%clk
00:43:56]} {[%emt 00:00:24]} Ba6 {[%clk 00:35:05]} {[%emt 00:00:10]} 28. Rd1
{[%clk 00:43:51]} {[%emt 00:00:36]} cxd4 {[%clk 00:34:47]} {[%emt 00:00:48]} 29.
Bf2 {[%clk 00:43:57]} {[%emt 00:00:23]} d3 {[%clk 00:35:09]} {[%emt 00:00:08]}
30. Bxa7 {[%clk 00:44:21]} {[%emt 00:00:07]} Rc8 {[%clk 00:35:24]} {[%emt
00:00:14]} 31. Kf2 {[%clk 00:43:22]} {[%emt 00:01:29]} d2 {[%clk 00:35:37]}
{[%emt 00:00:18]} 32. Be3 {[%clk 00:43:10]} {[%emt 00:00:42]} f4 {[%clk
00:35:53]} {[%emt 00:00:13]} 33. Bxd2 {[%clk 00:42:52]} {[%emt 00:00:48]} fxg3+
{[%clk 00:35:37]} {[%emt 00:00:46]} 34. Kxg3 {[%clk 00:42:58]} {[%emt
00:00:24]} Bxd2 {[%clk 00:35:42]} {[%emt 00:00:25]} 35. Rxd2 {[%clk 00:43:17]}
{[%emt 00:00:11]} Ra8 {[%clk 00:35:58]} {[%emt 00:00:14]} 36. Ra2 {[%clk
00:43:04]} {[%emt 00:00:44]} Bb5 {[%clk 00:35:59]} {[%emt 00:00:26]} 37. a5
{[%clk 00:43:29]} {[%emt 00:00:08]} Kf7 {[%clk 00:36:14]} {[%emt 00:00:15]} 38.
Kf4 {[%clk 00:43:44]} {[%emt 00:00:14]} Ke6 {[%clk 00:36:37]} {[%emt 00:00:07]}
39. Ke4 {[%clk 00:44:06]} {[%emt 00:00:09]} Kd6 {[%clk 00:36:57]} {[%emt
00:00:10]} 40. Kd4 {[%clk 00:44:30]} {[%emt 00:00:06]} Kc6 {[%clk 00:37:19]}
{[%emt 00:00:08]} 41. Rc2+ {[%clk 00:44:08]} {[%emt 00:00:52]} Kb7 {[%clk
00:37:45]} {[%emt 00:00:04]} 42. Ra2 {[%clk 00:43:53]} {[%emt 00:00:44]} Ka6
{[%clk 00:38:09]} {[%emt 00:00:07]} 43. h3 {[%clk 00:42:43]} {[%emt 00:01:39]}
Re8 {[%clk 00:38:01]} {[%emt 00:00:38]} 44. h4 {[%clk 00:41:14]} {[%emt
00:01:59]} Re1 {[%clk 00:37:33]} {[%emt 00:00:58]} 45. f4 {[%clk 00:40:06]}
{[%emt 00:01:38]} Rg1 {[%clk 00:37:21]} {[%emt 00:00:42]} 46. Ke5 {[%clk
00:38:21]} {[%emt 00:02:16]} Bc6 {[%clk 00:37:43]} {[%emt 00:00:07]} 47. Kf6
{[%clk 00:38:11]} {[%emt 00:00:41]} Be4 {[%clk 00:38:04]} {[%emt 00:00:09]} 48.
Re2 {[%clk 00:30:54]} {[%emt 00:07:46]} Bf5 {[%clk 00:37:18]} {[%emt 00:01:16]}
49. h5 {[%clk 00:28:00]} {[%emt 00:03:24]} Kxa5 {[%clk 00:37:02]} {[%emt
00:00:46]} 50. hxg6 {[%clk 00:26:58]} {[%emt 00:01:31]} hxg6 {[%clk 00:37:11]}
{[%emt 00:00:22]} 51. Ke5 {[%clk 00:21:36]} {[%emt 00:05:53]} Kb5 {[%clk
00:37:31]} {[%emt 00:00:08]} 52. Kd4 {[%clk 00:21:36]} {[%emt 00:00:32]} Kc6
{[%clk 00:37:50]} {[%emt 00:00:11]} 53. Ke3 {[%clk 00:21:31]} {[%emt 00:00:34]}
Kd5 {[%clk 00:37:41]} {[%emt 00:00:39]} 54. Rd2+ {[%clk 00:20:01]} {[%emt
00:01:59]} Ke6 {[%emt 00:00:08]} 55. Kf3 {[%clk 00:20:06]} {[%emt 00:00:24]}
Ra1 {[%clk 00:38:22]} {[%emt 00:00:13]} 56. Kg3 {[%clk 00:18:38]} {[%emt
00:01:58]} Ra3+ {[%clk 00:38:31]} {[%emt 00:00:17]} 57. Kh2 {[%clk 00:16:32]}
{[%emt 00:02:41]} Be4 {[%clk 00:38:45]} {[%emt 00:00:14]} 58. g4 {[%clk
00:16:15]} {[%emt 00:00:47]} Kf6 {[%clk 00:37:09]} {[%emt 00:02:06]} 59. Rd4
{[%clk 00:13:50]} {[%emt 00:02:55]} Bf3 {[%clk 00:37:11]} {[%emt 00:00:27]} 60.
f5 {[%clk 00:12:57]} {[%emt 00:01:25]} Ke5 {[%clk 00:36:54]} {[%emt 00:00:46]}
61. Rb4 {[%clk 00:13:06]} {[%emt 00:00:22]} g5 {[%clk 00:37:10]} {[%emt
00:00:15]} 62. Rb5+ {[%clk 00:11:45]} {[%emt 00:01:51]} Kf4 {[%clk 00:37:26]}
{[%emt 00:00:14]} 63. Rb4+ {[%clk 00:11:16]} {[%emt 00:00:58]} Be4 {[%clk
00:37:46]} {[%emt 00:00:10]} 64. Kg1 {[%clk 00:11:08]} {[%emt 00:00:38]} Kg3
{[%clk 00:37:43]} {[%emt 00:00:32]} 65. Kf1 {[%clk 00:11:29]} {[%emt 00:00:09]}
Bf3 {[%clk 00:38:05]} {[%emt 00:00:09]} 66. Ke1 {[%clk 00:11:32]} {[%emt
00:00:27]} Bxg4 {[%clk 00:38:25]} {[%emt 00:00:10]} 67. f6 {[%clk 00:11:40]}
{[%emt 00:00:22]} Re3+ {[%clk 00:38:47]} {[%emt 00:00:08]} 68. Kd2 {[%clk
00:11:33]} {[%emt 00:00:37]} Rf3 {[%clk 00:39:04]} {[%emt 00:00:14]} 69. Rb6
{[%clk 00:11:36]} {[%emt 00:00:27]} Bh5 {[%clk 00:38:37]} {[%emt 00:00:56]} 70.
Rb5 {[%clk 00:11:40]} {[%emt 00:00:27]} Kh4 {[%clk 00:38:57]} {[%emt 00:00:09]}
71. Rb4+ {[%clk 00:11:42]} {[%emt 00:00:29]} g4 {[%clk 00:39:18]} {[%emt
00:00:08]} 72. Rb6 {[%clk 00:11:54]} {[%emt 00:00:18]} g3 {[%clk 00:39:40]}
{[%emt 00:00:08]} 73. Rb1 {[%clk 00:12:06]} {[%emt 00:00:19]} g2 {[%clk
00:39:57]} {[%emt 00:00:12]} 74. Rg1 {[%clk 00:12:31]} {[%emt 00:00:06]} Kg3
{[%clk 00:40:19]} {[%emt 00:00:07]} 75. f7 {[%clk 00:12:54]} {[%emt 00:00:08]}
Bxf7 {[%clk 00:40:43]} {[%emt 00:00:06]} 76. Ke1 {[%emt 00:00:16]} Bc4 {[%clk
00:41:05]} {[%emt 00:00:01]} 77. Rxg2+ {[%clk 00:13:31]} {[%emt 00:00:13]} Kxg2
{[%clk 00:41:22]} {[%emt 00:00:10]} 78. Kd1 {[%clk 00:14:00]} {[%emt 00:00:03]}
Rf2 {[%clk 00:41:41]} {[%emt 00:00:12]} 79. Kc1 {[%clk 00:14:25]} {[%emt
00:00:05]} Bd3 {[%clk 00:41:55]} {[%emt 00:00:15]} 80. Kd1 {[%emt 00:00:22]}
Kf3 81. Ke1 {[%clk 00:15:06]} {[%emt 00:00:03]} Ke3 {[%clk 00:42:45]} {[%emt
00:00:04]} 82. Kd1 {[%clk 00:15:32]} {[%emt 00:00:04]} Rf1# {[%clk 00:42:32]}
{[%emt 00:00:13]} 0-1

[Event "ONJK DE"]
[Site "Enschede, Netherlands"]
[Date "2022.08.10"]
[Round "5.7"]
[White "Peeters, Paul"]
[Black "Koppenens, Oscar"]
[Result "0-1"]
[TimeControl "40min + 30sec/move"]
[WhiteElo "1138"]
[BlackElo "1266"]

1. e4 {[%clk 00:40:58]} {[%emt 00:00:01]} e6 {[%clk 00:40:55]} {[%emt
00:00:05]} 2. d4 {[%clk 00:41:22]} {[%emt 00:00:06]} d5 {[%clk 00:41:21]}
{[%emt 00:00:05]} 3. exd5 {[%clk 00:41:43]} {[%emt 00:00:08]} exd5 {[%clk
00:41:45]} {[%emt 00:00:07]} 4. Nf3 {[%clk 00:42:06]} {[%emt 00:00:07]} Bd6
{[%clk 00:42:04]} {[%emt 00:00:11]} 5. Bd3 {[%clk 00:42:26]} {[%emt 00:00:10]}
Ne7 {[%clk 00:42:27]} {[%emt 00:00:06]} 6. O-O {[%clk 00:42:15]} {[%emt
00:00:42]} O-O {[%clk 00:42:14]} {[%emt 00:00:43]} 7. c3 {[%clk 00:42:15]}
{[%emt 00:00:30]} c6 {[%clk 00:40:35]} {[%emt 00:02:09]} 8. h3 {[%clk
00:41:57]} {[%emt 00:00:47]} Bf5 {[%clk 00:40:37]} {[%emt 00:00:28]} 9. Ne5
{[%clk 00:41:27]} {[%emt 00:01:00]} f6 {[%clk 00:40:11]} {[%emt 00:00:55]} 10.
Bxf5 {[%clk 00:41:12]} {[%emt 00:00:46]} Nxf5 {[%clk 00:39:31]} {[%emt
00:01:10]} 11. Nd3 {[%clk 00:40:05]} {[%emt 00:01:38]} Qc7 {[%clk 00:38:23]}
{[%emt 00:01:36]} 12. Qg4 {[%clk 00:36:47]} {[%emt 00:03:49]} g6 {[%clk
00:35:36]} {[%emt 00:03:18]} 13. Bf4 {[%clk 00:36:17]} {[%emt 00:01:00]} Nd7
{[%clk 00:34:55]} {[%emt 00:01:11]} 14. Nd2 {[%clk 00:36:11]} {[%emt 00:00:35]}
Nb6 {[%clk 00:34:01]} {[%emt 00:01:24]} 15. g3 {[%clk 00:35:48]} {[%emt
00:00:53]} Bxf4 {[%clk 00:34:06]} {[%emt 00:00:25]} 16. Nxf4 {[%clk 00:36:02]}
{[%emt 00:00:15]} Rfe8 {[%clk 00:34:04]} {[%emt 00:00:33]} 17. Rfe1 {[%clk
00:34:42]} {[%emt 00:01:51]} Kf7 {[%clk 00:32:50]} {[%emt 00:01:44]} 18. Nh5
{[%clk 00:33:41]} {[%emt 00:01:31]} Re7 {[%clk 00:28:57]} {[%emt 00:04:23]} 19.
Nf4 {[%clk 00:32:31]} {[%emt 00:01:40]} Rae8 {[%clk 00:28:34]} {[%emt
00:00:53]} 20. Rxe7+ {[%clk 00:29:58]} {[%emt 00:03:03]} Rxe7 {[%clk 00:27:53]}
{[%emt 00:01:11]} 21. h4 {[%clk 00:29:22]} {[%emt 00:01:05]} Nd6 {[%clk
00:27:19]} {[%emt 00:01:03]} 22. h5 {[%clk 00:29:07]} {[%emt 00:00:46]} g5
{[%clk 00:26:37]} {[%emt 00:01:13]} 23. Nd3 {[%clk 00:25:02]} {[%emt 00:04:35]}
h6 {[%clk 00:25:46]} {[%emt 00:01:20]} 24. Nc5 {[%clk 00:23:37]} {[%emt
00:01:56]} Nd7 {[%clk 00:24:04]} {[%emt 00:02:11]} 25. Ndb3 {[%clk 00:23:43]}
{[%emt 00:00:24]} b6 {[%clk 00:24:06]} {[%emt 00:00:29]} 26. Nxd7 {[%clk
00:23:50]} {[%emt 00:00:22]} Qxd7 {[%clk 00:24:05]} {[%emt 00:00:31]} 27. Qxd7
{[%clk 00:24:01]} {[%emt 00:00:20]} Rxd7 {[%clk 00:24:30]} {[%emt 00:00:05]} 28.
Re1 {[%clk 00:24:23]} {[%emt 00:00:07]} Re7 {[%clk 00:24:54]} {[%emt 00:00:05]}
29. Rxe7+ {[%clk 00:24:44]} {[%emt 00:00:10]} Kxe7 {[%clk 00:25:20]} {[%emt
00:00:04]} 30. Nd2 {[%clk 00:25:05]} {[%emt 00:00:10]} c5 {[%emt 00:01:35]} 31.
a4 {[%clk 00:25:13]} cxd4 {[%clk 00:24:39]} {[%emt 00:00:28]} 32. cxd4 {[%clk
00:25:30]} {[%emt 00:00:13]} b5 {[%clk 00:25:06]} {[%emt 00:00:03]} 33. b3
{[%clk 00:25:43]} {[%emt 00:00:17]} a6 {[%clk 00:25:10]} {[%emt 00:00:26]} 34.
g4 {[%clk 00:25:36]} {[%emt 00:00:36]} Ne4 {[%clk 00:23:44]} {[%emt 00:01:56]}
35. Nxe4 {[%clk 00:25:42]} {[%emt 00:00:24]} dxe4 {[%clk 00:24:09]} {[%emt
00:00:05]} 36. Kf1 {[%clk 00:26:02]} {[%emt 00:00:11]} bxa4 {[%clk 00:24:07]}
{[%emt 00:00:31]} 37. bxa4 {[%clk 00:26:21]} {[%emt 00:00:11]} Ke6 {[%clk
00:24:30]} {[%emt 00:00:07]} 38. Ke2 {[%clk 00:26:46]} {[%emt 00:00:05]} Kd5
{[%clk 00:24:55]} {[%emt 00:00:05]} 39. Ke3 {[%clk 00:26:58]} {[%emt 00:00:18]}
a5 {[%clk 00:25:20]} {[%emt 00:00:05]} 40. Ke2 {[%clk 00:26:08]} {[%emt
00:01:21]} Kxd4 {[%clk 00:25:44]} {[%emt 00:00:06]} 41. Kd2 {[%clk 00:26:32]}
{[%emt 00:00:05]} Kc4 {[%clk 00:25:16]} {[%emt 00:00:58]} 42. Ke3 {[%clk
00:26:34]} {[%emt 00:00:28]} Kb4 {[%clk 00:25:40]} {[%emt 00:00:06]} 43. Kxe4
{[%clk 00:26:59]} {[%emt 00:00:05]} Kxa4 {[%clk 00:26:05]} {[%emt 00:00:05]} 44.
f4 {[%clk 00:27:27]} {[%emt 00:00:03]} Kb5 {[%clk 00:26:21]} {[%emt 00:00:13]}
45. fxg5 {[%clk 00:27:50]} {[%emt 00:00:07]} fxg5 {[%clk 00:26:43]} {[%emt
00:00:09]} 46. Kf5 {[%clk 00:28:17]} {[%emt 00:00:03]} a4 {[%clk 00:27:08]}
{[%emt 00:00:05]} 47. Kg6 {[%clk 00:28:45]} {[%emt 00:00:02]} a3 {[%clk
00:27:33]} {[%emt 00:00:04]} 48. Kxh6 {[%clk 00:29:07]} {[%emt 00:00:08]} a2
{[%clk 00:28:00]} {[%emt 00:00:04]} 49. Kxg5 {[%clk 00:29:25]} {[%emt
00:00:12]} a1=Q {[%clk 00:28:24]} {[%emt 00:00:06]} 50. h6 {[%emt 00:00:26]}
Qh8 {[%clk 00:28:45]} {[%emt 00:00:02]} 51. Kg6 {[%clk 00:30:01]} {[%emt
00:00:04]} Kc6 {[%clk 00:29:10]} {[%emt 00:00:05]} 52. g5 {[%clk 00:30:28]}
{[%emt 00:00:03]} Kd7 {[%clk 00:29:15]} {[%emt 00:00:25]} 53. Kf7 {[%clk
00:30:45]} {[%emt 00:00:14]} Qh7 {[%clk 00:29:19]} {[%emt 00:00:25]} 54. Kf6
{[%clk 00:30:54]} {[%emt 00:00:20]} Ke8 {[%clk 00:29:45]} {[%emt 00:00:05]} 55.
Ke5 {[%clk 00:30:04]} {[%emt 00:01:20]} Kf7 {[%clk 00:30:06]} {[%emt 00:00:08]}
56. Kf4 {[%clk 00:30:27]} {[%emt 00:00:08]} Kg6 {[%clk 00:30:27]} {[%emt
00:00:08]} 57. Kg4 {[%clk 00:30:44]} {[%emt 00:00:13]} Qe7 {[%clk 00:30:50]}
{[%emt 00:00:07]} 58. Kh4 {[%clk 00:28:22]} {[%emt 00:02:53]} Qxg5+ {[%clk
00:31:13]} {[%emt 00:00:06]} 59. Kh3 {[%clk 00:28:41]} {[%emt 00:00:11]} Kxh6
{[%clk 00:31:38]} {[%emt 00:00:05]} 60. Kh2 {[%clk 00:29:13]} {[%emt 00:00:30]}
Qg4 {[%clk 00:32:28]} {[%emt 00:00:08]} 61. Kh1 {[%clk 00:29:34]} {[%emt
00:00:09]} Kg5 {[%clk 00:32:51]} {[%emt 00:00:06]} 62. Kh2 {[%clk 00:29:53]}
{[%emt 00:00:11]} Kf4 {[%clk 00:33:20]} {[%emt 00:00:02]} 63. Kh1 {[%emt
00:00:11]} Kf3 {[%clk 00:33:48]} 64. Kh2 {[%clk 00:30:40]} {[%emt 00:00:04]}
Qg2+ {[%emt 00:00:34]} 0-1

[Event "ONJK DE"]
[Site "Enschede, Netherlands"]
[Date "2022.08.10"]
[Round "5.8"]
[White "Thijssen, Freek (E)"]
[Black "Tetova, Amir"]
[Result "1-0"]
[TimeControl "40min + 30sec/move"]
[WhiteElo "1484"]
[BlackElo "1154"]

1. e4 {[%clk 00:40:58]} {[%emt 00:00:02]} c5 {[%clk 00:40:57]} {[%emt
00:00:03]} 2. Nf3 {[%clk 00:41:23]} {[%emt 00:00:05]} d6 {[%clk 00:41:21]}
{[%emt 00:00:06]} 3. Bb5+ {[%clk 00:41:46]} {[%emt 00:00:07]} Bd7 {[%clk
00:41:44]} {[%emt 00:00:07]} 4. Bxd7+ {[%clk 00:42:08]} {[%emt 00:00:08]} Nxd7
{[%clk 00:42:10]} {[%emt 00:00:04]} 5. d4 {[%clk 00:42:26]} {[%emt 00:00:13]}
cxd4 {[%clk 00:42:27]} {[%emt 00:00:12]} 6. Nxd4 {[%clk 00:42:40]} {[%emt
00:00:16]} e5 {[%clk 00:42:46]} {[%emt 00:00:11]} 7. Nf3 {[%clk 00:42:34]}
{[%emt 00:00:36]} Ngf6 {[%clk 00:43:10]} {[%emt 00:00:06]} 8. Nc3 {[%clk
00:42:50]} {[%emt 00:00:15]} Be7 {[%clk 00:43:29]} {[%emt 00:00:10]} 9. O-O
{[%clk 00:43:06]} {[%emt 00:00:13]} O-O {[%clk 00:43:54]} {[%emt 00:00:06]} 10.
Bg5 {[%clk 00:43:20]} {[%emt 00:00:17]} h6 {[%clk 00:42:53]} {[%emt 00:01:31]}
11. Bxf6 {[%clk 00:43:42]} {[%emt 00:00:08]} Nxf6 {[%clk 00:43:18]} {[%emt
00:00:05]} 12. Qd3 {[%clk 00:43:32]} {[%emt 00:00:40]} Nh5 {[%clk 00:42:27]}
{[%emt 00:01:22]} 13. Nd5 {[%clk 00:43:18]} {[%emt 00:00:43]} Bf6 {[%clk
00:37:17]} {[%emt 00:05:40]} 14. Rad1 {[%clk 00:42:08]} {[%emt 00:01:40]} Nf4
{[%clk 00:36:15]} {[%emt 00:01:32]} 15. Nxf6+ {[%clk 00:41:43]} {[%emt
00:00:55]} Qxf6 {[%clk 00:35:20]} {[%emt 00:01:25]} 16. Qxd6 {[%clk 00:41:10]}
{[%emt 00:01:03]} Qxd6 {[%clk 00:30:35]} {[%emt 00:05:14]} 17. Rxd6 {[%clk
00:41:03]} {[%emt 00:00:38]} Rfe8 {[%clk 00:30:11]} {[%emt 00:00:53]} 18. Rfd1
{[%emt 00:08:56]} Nh5 {[%clk 00:23:25]} 19. R1d5 {[%clk 00:38:11]} {[%emt
00:02:11]} f6 {[%clk 00:23:09]} {[%emt 00:00:47]} 20. g3 {[%clk 00:38:24]}
{[%emt 00:00:17]} g5 {[%clk 00:19:06]} {[%emt 00:04:33]} 21. Rd7 {[%clk
00:37:18]} {[%emt 00:01:37]} b6 {[%clk 00:18:14]} {[%emt 00:01:21]} 22. Rb7
{[%clk 00:36:27]} {[%emt 00:01:21]} Rec8 {[%clk 00:17:09]} {[%emt 00:01:35]} 23.
c3 {[%clk 00:36:46]} {[%emt 00:00:12]} g4 {[%clk 00:17:22]} {[%emt 00:00:16]}
24. Nh4 {[%clk 00:36:58]} {[%emt 00:00:18]} Ng7 {[%clk 00:16:49]} {[%emt
00:01:02]} 25. Rdd7 {[%clk 00:37:15]} {[%emt 00:00:14]} Ne6 {[%clk 00:17:05]}
{[%emt 00:00:13]} 26. Nf5 {[%clk 00:37:05]} {[%emt 00:00:40]} Nc5 {[%clk
00:06:01]} {[%emt 00:11:34]} 27. Rg7+ {[%clk 00:36:41]} {[%emt 00:00:55]} Kf8
{[%clk 00:06:16]} {[%emt 00:00:15]} 28. Rgf7+ {[%clk 00:36:18]} {[%emt
00:00:52]} 1-0

[Event "ONJK DE"]
[Site "Enschede, Netherlands"]
[Date "2022.08.10"]
[Round "6.1"]
[White "Van Haaften, Jelle"]
[Black "Groenewoud, Joel"]
[Result "0-1"]
[TimeControl "40min + 30sec/move"]
[WhiteElo "992"]
[BlackElo "1497"]

1. c4 {[%clk 00:40:59]} Nf6 {[%clk 00:40:59]} {[%emt 00:00:02]} 2. Nc3 {[%clk
00:41:24]} {[%emt 00:00:05]} g6 {[%clk 00:41:24]} {[%emt 00:00:05]} 3. g3
{[%clk 00:41:50]} {[%emt 00:00:04]} Bg7 {[%clk 00:41:48]} {[%emt 00:00:06]} 4.
Bg2 {[%clk 00:42:16]} {[%emt 00:00:04]} O-O {[%clk 00:42:12]} {[%emt 00:00:07]}
5. Nf3 {[%clk 00:42:41]} {[%emt 00:00:04]} d6 {[%clk 00:42:35]} {[%emt
00:00:06]} 6. O-O {[%clk 00:43:06]} {[%emt 00:00:06]} c6 {[%clk 00:42:57]}
{[%emt 00:00:08]} 7. e4 {[%clk 00:43:28]} {[%emt 00:00:08]} Qa5 {[%clk
00:43:18]} {[%emt 00:00:09]} 8. d3 {[%clk 00:43:43]} {[%emt 00:00:16]} e5
{[%clk 00:43:08]} {[%emt 00:00:39]} 9. Bd2 {[%clk 00:43:54]} {[%emt 00:00:19]}
Qc7 {[%clk 00:43:26]} {[%emt 00:00:12]} 10. a3 {[%clk 00:44:03]} {[%emt
00:00:21]} Nh5 {[%clk 00:43:27]} {[%emt 00:00:29]} 11. b4 {[%clk 00:43:13]}
{[%emt 00:01:20]} f5 {[%clk 00:43:44]} {[%emt 00:00:13]} 12. h3 {[%clk
00:43:14]} {[%emt 00:00:28]} f4 {[%clk 00:42:53]} {[%emt 00:01:22]} 13. g4
{[%clk 00:43:03]} {[%emt 00:00:42]} Nf6 {[%clk 00:43:01]} {[%emt 00:00:21]} 14.
b5 {[%clk 00:43:16]} {[%emt 00:00:16]} Nbd7 {[%clk 00:40:03]} {[%emt 00:03:27]}
15. bxc6 {[%clk 00:41:32]} {[%emt 00:02:14]} bxc6 {[%clk 00:40:18]} {[%emt
00:00:16]} 16. Rb1 {[%clk 00:41:36]} {[%emt 00:00:26]} Nc5 {[%clk 00:39:57]}
{[%emt 00:00:51]} 17. Ne1 {[%emt 00:00:19]} h5 {[%clk 00:38:11]} {[%emt
00:02:14]} 18. g5 {[%clk 00:40:28]} {[%emt 00:01:51]} Nh7 {[%clk 00:38:29]}
{[%emt 00:00:12]} 19. h4 {[%clk 00:40:49]} {[%emt 00:00:09]} Rf7 {[%clk
00:37:34]} {[%emt 00:01:25]} 20. Na4 {[%clk 00:39:42]} {[%emt 00:01:37]} Ne6
{[%clk 00:34:03]} {[%emt 00:04:00]} 21. Bh3 {[%clk 00:38:00]} {[%emt 00:02:12]}
Nd4 {[%clk 00:30:40]} {[%emt 00:03:54]} 22. Bxc8 {[%clk 00:38:04]} {[%emt
00:00:25]} Qxc8 {[%clk 00:31:01]} {[%emt 00:00:09]} 23. f3 {[%clk 00:36:17]}
{[%emt 00:02:17]} Nf8 {[%clk 00:27:18]} {[%emt 00:04:13]} 24. c5 {[%clk
00:33:45]} {[%emt 00:03:03]} Nfe6 {[%clk 00:23:03]} {[%emt 00:04:45]} 25. cxd6
{[%clk 00:32:03]} {[%emt 00:02:12]} Bf8 {[%clk 00:22:45]} {[%emt 00:00:48]} 26.
Bb4 {[%clk 00:30:25]} {[%emt 00:02:08]} c5 {[%clk 00:21:42]} {[%emt 00:01:33]}
27. Bd2 {[%clk 00:26:28]} {[%emt 00:04:27]} Bxd6 {[%clk 00:21:53]} {[%emt
00:00:19]} 28. Nc3 {[%emt 00:00:23]} c4 {[%clk 00:20:50]} {[%emt 00:01:31]} 29.
Nd5 {[%clk 00:24:36]} {[%emt 00:02:30]} Bc5 {[%clk 00:19:15]} {[%emt 00:02:05]}
30. Kg2 {[%clk 00:23:38]} {[%emt 00:01:29]} Nb3 {[%clk 00:05:03]} {[%emt
00:14:42]} 31. dxc4 {[%clk 00:22:40]} {[%emt 00:01:28]} Nxd2 {[%clk 00:04:27]}
{[%emt 00:01:06]} 32. Qxd2 {[%clk 00:22:54]} {[%emt 00:00:16]} Bxa3 {[%clk
00:01:43]} {[%emt 00:03:14]} 33. Qc3 {[%clk 00:21:49]} {[%emt 00:01:35]} Bd6
{[%clk 00:01:03]} {[%emt 00:01:09]} 34. Nd3 {[%clk 00:22:11]} {[%emt 00:00:09]}
Nd4 {[%clk 00:01:06]} {[%emt 00:00:26]} 35. Rfe1 {[%clk 00:20:56]} {[%emt
00:01:46]} Nxf3 {[%clk 00:00:33]} {[%emt 00:01:02]} 36. Nf6+ {[%clk 00:20:40]}
{[%emt 00:00:46]} Rxf6 {[%clk 00:00:35]} {[%emt 00:00:29]} 37. gxf6 {[%clk
00:20:25]} {[%emt 00:00:45]} Qg4+ {[%clk 00:00:37]} {[%emt 00:00:28]} 38. Kf2
{[%clk 00:20:21]} {[%emt 00:00:33]} Qg3+ {[%clk 00:00:51]} {[%emt 00:00:16]} 39.
Ke2 {[%clk 00:20:30]} {[%emt 00:00:21]} Nxe1 {[%clk 00:00:48]} {[%emt
00:00:33]} 40. Rxe1 {[%clk 00:20:30]} {[%emt 00:00:30]} Rb8 {[%clk 00:00:35]}
{[%emt 00:00:45]} 41. Kd2 {[%clk 00:19:24]} {[%emt 00:01:35]} Qxh4 {[%clk
00:00:38]} {[%emt 00:00:26]} 42. c5 {[%clk 00:19:28]} {[%emt 00:00:27]} Bf8
{[%clk 00:00:36]} {[%emt 00:00:32]} 43. Nxe5 {[%clk 00:18:41]} {[%emt
00:01:17]} Rd8+ {[%clk 00:00:34]} {[%emt 00:00:32]} 44. Kc1 {[%clk 00:18:20]}
{[%emt 00:00:50]} Qxf6 {[%clk 00:00:34]} {[%emt 00:00:30]} 45. Qb3+ {[%clk
00:18:04]} {[%emt 00:00:46]} Kg7 {[%clk 00:00:33]} {[%emt 00:00:32]} 46. Qb7+
{[%clk 00:17:37]} {[%emt 00:00:57]} Be7 {[%clk 00:00:44]} {[%emt 00:00:18]} 47.
Qc7 {[%clk 00:16:35]} {[%emt 00:01:33]} Kg8 {[%clk 00:00:34]} {[%emt 00:00:39]}
48. Rg1 {[%clk 00:16:11]} {[%emt 00:00:54]} g5 {[%clk 00:00:35]} {[%emt
00:00:30]} 49. Nc6 {[%clk 00:14:38]} {[%emt 00:02:03]} Qc3+ {[%clk 00:00:40]}
{[%emt 00:00:25]} 50. Kb1 {[%clk 00:14:51]} {[%emt 00:00:17]} Qb3+ {[%clk
00:01:06]} {[%emt 00:00:04]} 51. Kc1 {[%clk 00:15:04]} {[%emt 00:00:17]} Qc3+
{[%clk 00:01:27]} {[%emt 00:00:09]} 52. Kb1 {[%clk 00:15:27]} {[%emt 00:00:06]}
Qd3+ {[%clk 00:00:48]} {[%emt 00:01:09]} 53. Kc1 {[%clk 00:15:34]} {[%emt
00:00:23]} Qe3+ {[%clk 00:01:01]} {[%emt 00:00:17]} 54. Kb2 {[%clk 00:15:32]}
{[%emt 00:00:33]} Rd2+ {[%clk 00:01:15]} {[%emt 00:00:16]} 0-1